[Event "*** SCC Grand Prix: Titled Tuesday Blitz"]
[Site "Chess.com"]
[Date "2020.10.06"]
[Round "6"]
[White "Kacparov"]
[Black "Kavyev_Ruslan"]
[Result "1-0"]
[WhiteElo "2755"]
[BlackElo "2583"]
[TimeControl "180+1"]
[EndTime "11:05:55 PDT"]
[Termination "Kacparov won by resignation"]

1. e4 {[%clk 0:03:00.9]} 1... c5 {[%clk 0:02:56.9]} 2. Nf3 {[%clk 0:02:59.5]}
2... d6 {[%clk 0:02:56.9]} 3. d4 {[%clk 0:03:00.1]} 3... cxd4 {[%clk 0:02:57.8]}
4. Nxd4 {[%clk 0:02:57.4]} 4... Nf6 {[%clk 0:02:58.4]} 5. f3 {[%clk 0:02:56.7]}
5... e5 {[%clk 0:02:57.7]} 6. Nb3 {[%clk 0:02:56.8]} 6... Be6 {[%clk 0:02:52.7]}
7. c4 {[%clk 0:02:56.8]} 7... Nbd7 {[%clk 0:02:52.3]} 8. Be3 {[%clk 0:02:56.4]}
8... a6 {[%clk 0:02:46.1]} 9. Nc3 {[%clk 0:02:55.9]} 9... Be7 {[%clk 0:02:44.9]}
10. Nd5 {[%clk 0:02:55.5]} 10... Bxd5 {[%clk 0:02:44]} 11. cxd5 {[%clk
0:02:56.4]} 11... O-O {[%clk 0:02:43.9]} 12. Bd3 {[%clk 0:02:55]} 12... Nh5
{[%clk 0:02:43.8]} 13. g3 {[%clk 0:02:54.8]} 13... Bg5 {[%clk 0:02:43.3]} 14.
Bf2 {[%clk 0:02:54.8]} 14... Rc8 {[%clk 0:02:41.3]} 15. O-O {[%clk 0:02:54.8]}
15... Be7 {[%clk 0:02:25.8]} 16. Qd2 {[%clk 0:02:51.9]} 16... Qc7 {[%clk
0:02:12]} 17. Rac1 {[%clk 0:02:49.5]} 17... Qb8 {[%clk 0:02:12.2]} 18. Be3
{[%clk 0:02:43.7]} 18... Rxc1 {[%clk 0:02:03.1]} 19. Rxc1 {[%clk 0:02:43.2]}
19... Rc8 {[%clk 0:02:04]} 20. Na5 {[%clk 0:02:42.2]} 20... Bd8 {[%clk
0:02:01.8]} 21. Rxc8 {[%clk 0:02:37.6]} 21... Qxc8 {[%clk 0:02:01.8]} 22. Nc4
{[%clk 0:02:37.5]} 22... Bc7 {[%clk 0:01:54.4]} 23. Qb4 {[%clk 0:02:34.2]} 23...
Qb8 {[%clk 0:01:51.5]} 24. Na5 {[%clk 0:02:22.4]} 24... b5 {[%clk 0:01:42.8]}
25. Nc6 {[%clk 0:02:18.7]} 25... Qb7 {[%clk 0:01:38.3]} 26. Kg2 {[%clk
0:02:14.6]} 26... f5 {[%clk 0:01:13.8]} 27. a4 {[%clk 0:02:10.2]} 27... f4
{[%clk 0:01:13.2]} 28. Bf2 {[%clk 0:02:08]} 28... Bb6 {[%clk 0:01:05.4]} 29.
Qxd6 {[%clk 0:02:03.5]} 29... Bxf2 {[%clk 0:01:04.5]} 30. Qe6+ {[%clk
0:02:03.3]} 30... Kf8 {[%clk 0:00:59.9]} 31. Qe7+ {[%clk 0:02:02.9]} 31... Kg8
{[%clk 0:01:00.5]} 32. Qe8+ {[%clk 0:01:57.3]} 32... Nf8 {[%clk 0:00:59.5]} 33.
Ne7+ {[%clk 0:01:57.5]} 33... Qxe7 {[%clk 0:00:58.7]} 34. Qxe7 {[%clk
0:01:57.7]} 34... fxg3 {[%clk 0:00:59.3]} 35. hxg3 {[%clk 0:01:51.4]} 35... Bxg3
{[%clk 0:01:00.2]} 36. d6 {[%clk 0:01:49.4]} 36... Be1 {[%clk 0:00:58.1]} 37. d7
{[%clk 0:01:45.7]} 37... Nf4+ {[%clk 0:00:57.9]} 38. Kf1 {[%clk 0:01:45.4]}
38... Nxd7 {[%clk 0:00:58]} 39. Qxd7 {[%clk 0:01:44.5]} 1-0

[Event "*** SCC Grand Prix: Titled Tuesday Blitz"]
[Site "Chess.com"]
[Date "2020.10.06"]
[Round "6"]
[White "FramboiseDePrintemps"]
[Black "chessfrendz"]
[Result "1-0"]
[WhiteElo "2665"]
[BlackElo "2380"]
[TimeControl "180+1"]
[EndTime "11:06:04 PDT"]
[Termination "FramboiseDePrintemps won by checkmate"]

1. d4 {[%clk 0:03:00.9]} 1... Nf6 {[%clk 0:02:57.8]} 2. c4 {[%clk 0:03:01]} 2...
e6 {[%clk 0:02:57]} 3. Nf3 {[%clk 0:03:01]} 3... d5 {[%clk 0:02:56.7]} 4. Nc3
{[%clk 0:03:01]} 4... Be7 {[%clk 0:02:55.3]} 5. Bg5 {[%clk 0:03:01]} 5... O-O
{[%clk 0:02:55]} 6. e3 {[%clk 0:03:01.5]} 6... c6 {[%clk 0:02:53.7]} 7. Rc1
{[%clk 0:03:01.3]} 7... h6 {[%clk 0:02:51.9]} 8. Bh4 {[%clk 0:03:00.8]} 8...
Nbd7 {[%clk 0:02:51.4]} 9. Qc2 {[%clk 0:02:59]} 9... Re8 {[%clk 0:02:45.5]} 10.
a3 {[%clk 0:02:57.2]} 10... a6 {[%clk 0:02:43.2]} 11. Bd3 {[%clk 0:02:55.6]}
11... dxc4 {[%clk 0:02:42]} 12. Bxc4 {[%clk 0:02:56.2]} 12... b5 {[%clk
0:02:42]} 13. Ba2 {[%clk 0:02:51.8]} 13... Bb7 {[%clk 0:02:41.8]} 14. O-O {[%clk
0:02:49.7]} 14... Rc8 {[%clk 0:02:33.2]} 15. Rfd1 {[%clk 0:02:47.1]} 15... Qb6
{[%clk 0:02:30]} 16. Ne5 {[%clk 0:02:43.7]} 16... c5 {[%clk 0:02:09.3]} 17. Bb1
{[%clk 0:02:39.1]} 17... Red8 {[%clk 0:00:40.6]} 18. Nxd7 {[%clk 0:02:14.5]}
18... Rxd7 {[%clk 0:00:39.5]} 19. Bxf6 {[%clk 0:02:14.5]} 19... Bxf6 {[%clk
0:00:38.6]} 20. Qh7+ {[%clk 0:02:15.1]} 20... Kf8 {[%clk 0:00:38.4]} 21. Ne4
{[%clk 0:02:15.8]} 21... Bxe4 {[%clk 0:00:35.9]} 22. Qh8+ {[%clk 0:02:12.7]}
22... Ke7 {[%clk 0:00:33.4]} 23. Qxc8 {[%clk 0:02:13.6]} 23... Bxb1 {[%clk
0:00:32]} 24. Qxd7+ {[%clk 0:02:07.8]} 24... Kxd7 {[%clk 0:00:29.8]} 25. dxc5+
{[%clk 0:02:07.8]} 25... Ke7 {[%clk 0:00:23.8]} 26. cxb6 {[%clk 0:02:07.9]}
26... Be4 {[%clk 0:00:23.5]} 27. Rc7+ {[%clk 0:02:06.2]} 27... Ke8 {[%clk
0:00:22.1]} 28. f3 {[%clk 0:02:04.1]} 28... Bd5 {[%clk 0:00:21.1]} 29. Rxd5
{[%clk 0:02:03]} 29... exd5 {[%clk 0:00:20.6]} 30. b7 {[%clk 0:02:03.5]} 30...
Kd8 {[%clk 0:00:18.1]} 31. b8=Q# {[%clk 0:02:03.5]} 1-0

[Event "*** SCC Grand Prix: Titled Tuesday Blitz"]
[Site "Chess.com"]
[Date "2020.10.06"]
[Round "6"]
[White "Omk124"]
[Black "stanyga"]
[Result "0-1"]
[WhiteElo "2472"]
[BlackElo "2617"]
[TimeControl "180+1"]
[EndTime "11:06:05 PDT"]
[Termination "stanyga won by checkmate"]

1. e4 {[%clk 0:03:00.9]} 1... e5 {[%clk 0:02:58.9]} 2. Nf3 {[%clk 0:03:00.5]}
2... Nc6 {[%clk 0:02:58.9]} 3. Bc4 {[%clk 0:03:00.4]} 3... Bc5 {[%clk
0:02:58.3]} 4. c3 {[%clk 0:03:00.9]} 4... Nf6 {[%clk 0:02:58]} 5. d3 {[%clk
0:03:00.8]} 5... d6 {[%clk 0:02:56.3]} 6. Nbd2 {[%clk 0:03:00.3]} 6... a6 {[%clk
0:02:49.1]} 7. Bb3 {[%clk 0:03:00.3]} 7... Ba7 {[%clk 0:02:47.7]} 8. Nf1 {[%clk
0:02:59.3]} 8... Ne7 {[%clk 0:02:46.7]} 9. Ng3 {[%clk 0:02:58]} 9... Ng6 {[%clk
0:02:46.4]} 10. O-O {[%clk 0:02:56.8]} 10... O-O {[%clk 0:02:46]} 11. h3 {[%clk
0:02:56.5]} 11... h6 {[%clk 0:02:43.2]} 12. d4 {[%clk 0:02:55.4]} 12... Re8
{[%clk 0:02:09.6]} 13. Re1 {[%clk 0:02:54.9]} 13... Nh7 {[%clk 0:01:42.9]} 14.
Nf5 {[%clk 0:02:51.1]} 14... Qf6 {[%clk 0:01:33.4]} 15. dxe5 {[%clk 0:02:42.2]}
15... Nxe5 {[%clk 0:01:29.2]} 16. Nxe5 {[%clk 0:02:40.7]} 16... Rxe5 {[%clk
0:01:28.8]} 17. Qf3 {[%clk 0:02:40.3]} 17... Bxf5 {[%clk 0:01:10.4]} 18. Bf4
{[%clk 0:02:39.5]} 18... Bg6 {[%clk 0:01:10.3]} 19. Bxe5 {[%clk 0:02:39.3]}
19... Qxe5 {[%clk 0:01:04.4]} 20. Rad1 {[%clk 0:02:38.3]} 20... Ng5 {[%clk
0:01:03.8]} 21. Qg4 {[%clk 0:02:37]} 21... Nxe4 {[%clk 0:00:59.8]} 22. Qxg6
{[%clk 0:02:27]} 22... Bxf2+ {[%clk 0:00:55.9]} 23. Kf1 {[%clk 0:02:21.7]} 23...
Bxe1 {[%clk 0:00:27.2]} 24. Bxf7+ {[%clk 0:02:21]} 24... Kf8 {[%clk 0:00:15.4]}
25. Rxe1 {[%clk 0:02:20.3]} 25... Qf4+ {[%clk 0:00:12.9]} 26. Ke2 {[%clk
0:02:06.8]} 26... Qd2+ {[%clk 0:00:12.1]} 27. Kf3 {[%clk 0:02:05.3]} 27... Ng5+
{[%clk 0:00:12.6]} 28. Kg4 {[%clk 0:02:02.2]} 28... Qxg2+ {[%clk 0:00:11.8]} 29.
Kf4 {[%clk 0:02:00.4]} 29... Qf3# {[%clk 0:00:11.8]} 0-1

[Event "*** SCC Grand Prix: Titled Tuesday Blitz"]
[Site "Chess.com"]
[Date "2020.10.06"]
[Round "6"]
[White "SanchezKelvin"]
[Black "Quiet_Desperation"]
[Result "1-0"]
[WhiteElo "2386"]
[BlackElo "1928"]
[TimeControl "180+1"]
[EndTime "11:06:05 PDT"]
[Termination "SanchezKelvin won by resignation"]

1. e4 {[%clk 0:03:00.9]} 1... e6 {[%clk 0:03:00.4]} 2. d4 {[%clk 0:03:00.3]}
2... d5 {[%clk 0:03:01]} 3. Nd2 {[%clk 0:03:00.1]} 3... Nf6 {[%clk 0:03:00.5]}
4. e5 {[%clk 0:03:00.3]} 4... Nfd7 {[%clk 0:03:00.6]} 5. f4 {[%clk 0:03:00.4]}
5... c5 {[%clk 0:02:43.6]} 6. c3 {[%clk 0:02:59.9]} 6... Nc6 {[%clk 0:02:43.7]}
7. Ndf3 {[%clk 0:02:58.7]} 7... Qb6 {[%clk 0:02:43.8]} 8. g3 {[%clk 0:02:57.7]}
8... cxd4 {[%clk 0:02:12.3]} 9. cxd4 {[%clk 0:02:56.1]} 9... f6 {[%clk
0:02:12.7]} 10. Bd3 {[%clk 0:02:54.7]} 10... Be7 {[%clk 0:02:12.5]} 11. Ne2
{[%clk 0:02:52.7]} 11... O-O {[%clk 0:01:26.1]} 12. Nc3 {[%clk 0:02:47.7]} 12...
fxe5 {[%clk 0:01:22.1]} 13. fxe5 {[%clk 0:02:42.2]} 13... Ndxe5 {[%clk 0:01:19]}
14. dxe5 {[%clk 0:02:38.5]} 14... Nxe5 {[%clk 0:01:19.2]} 15. Rf1 {[%clk
0:02:27.5]} 15... Ng4 {[%clk 0:01:09.3]} 16. h3 {[%clk 0:02:13.9]} 16... Ne3
{[%clk 0:01:06.9]} 17. Bxe3 {[%clk 0:02:12.6]} 17... Qxe3+ {[%clk 0:01:06.7]}
18. Qe2 {[%clk 0:02:10.8]} 18... Qb6 {[%clk 0:01:01.2]} 19. Ne5 {[%clk
0:02:05.9]} 19... Rxf1+ {[%clk 0:00:57]} 20. Kxf1 {[%clk 0:02:05.4]} 20... Bf6
{[%clk 0:00:48.4]} 21. Ng4 {[%clk 0:01:55.9]} 21... Bd4 {[%clk 0:00:41.9]} 22.
Kg2 {[%clk 0:01:53]} 22... Bd7 {[%clk 0:00:41.3]} 23. Rf1 {[%clk 0:01:50.1]}
23... h5 {[%clk 0:00:38]} 24. Ne5 {[%clk 0:01:33.2]} 24... Bxe5 {[%clk 0:00:36]}
25. Qxe5 {[%clk 0:01:34.1]} 25... Qxb2+ {[%clk 0:00:32.4]} 26. Rf2 {[%clk
0:01:33.7]} 26... Qb6 {[%clk 0:00:32.2]} 27. Qxh5 {[%clk 0:01:31.8]} 1-0

[Event "*** SCC Grand Prix: Titled Tuesday Blitz"]
[Site "Chess.com"]
[Date "2020.10.06"]
[Round "6"]
[White "RestartingChess"]
[Black "Sven_Tica"]
[Result "0-1"]
[WhiteElo "2484"]
[BlackElo "2651"]
[TimeControl "180+1"]
[EndTime "11:06:12 PDT"]
[Termination "Sven_Tica won by resignation"]

1. e4 {[%clk 0:03:00.9]} 1... c5 {[%clk 0:03:00]} 2. Nf3 {[%clk 0:03:00.9]} 2...
Nf6 {[%clk 0:03:00.7]} 3. e5 {[%clk 0:03:00.7]} 3... Nd5 {[%clk 0:03:01.1]} 4.
c4 {[%clk 0:03:01.3]} 4... Nc7 {[%clk 0:03:00.4]} 5. b3 {[%clk 0:03:01.9]} 5...
Nc6 {[%clk 0:03:00.1]} 6. Bb2 {[%clk 0:03:02.5]} 6... Ne6 {[%clk 0:03:00.7]} 7.
Be2 {[%clk 0:03:00.4]} 7... g6 {[%clk 0:03:00.2]} 8. O-O {[%clk 0:03:00.3]} 8...
Bg7 {[%clk 0:03:00.9]} 9. Re1 {[%clk 0:03:00.2]} 9... O-O {[%clk 0:03:00.3]} 10.
d3 {[%clk 0:02:59.5]} 10... d6 {[%clk 0:02:42.5]} 11. Bf1 {[%clk 0:02:59.1]}
11... dxe5 {[%clk 0:02:42.5]} 12. Nxe5 {[%clk 0:02:47.2]} 12... Nxe5 {[%clk
0:02:41.5]} 13. Bxe5 {[%clk 0:02:47.2]} 13... Bxe5 {[%clk 0:02:41.1]} 14. Rxe5
{[%clk 0:02:45.5]} 14... Qd4 {[%clk 0:02:41.6]} 15. Rxe6 {[%clk 0:02:42.1]}
15... Bxe6 {[%clk 0:02:42.5]} 16. Nd2 {[%clk 0:02:42.6]} 16... Rad8 {[%clk
0:02:40.2]} 17. Nf3 {[%clk 0:02:40.3]} 17... Qb2 {[%clk 0:02:29.4]} 18. Rb1
{[%clk 0:02:28.4]} 18... Qf6 {[%clk 0:02:22]} 19. Qe1 {[%clk 0:02:25.4]} 19...
b6 {[%clk 0:02:19.7]} 20. h3 {[%clk 0:02:23.5]} 20... Bf5 {[%clk 0:02:18.6]} 21.
Rd1 {[%clk 0:02:23.1]} 21... Rd6 {[%clk 0:02:16.9]} 22. Qe3 {[%clk 0:02:23.1]}
22... Rfd8 {[%clk 0:02:16.6]} 23. g4 {[%clk 0:02:23.4]} 23... Bc8 {[%clk
0:02:14.8]} 24. Bg2 {[%clk 0:02:16.7]} 24... Bb7 {[%clk 0:02:11.4]} 25. Ne5
{[%clk 0:02:15.1]} 25... Bxg2 {[%clk 0:02:10.5]} 26. Kxg2 {[%clk 0:02:16]} 26...
Rd4 {[%clk 0:02:07.9]} 27. Qf3 {[%clk 0:02:12.1]} 27... Qxf3+ {[%clk 0:02:02.9]}
28. Kxf3 {[%clk 0:02:13]} 28... f6 {[%clk 0:02:02.9]} 29. Nc6 {[%clk 0:02:13.6]}
29... Rxd3+ {[%clk 0:02:03.3]} 30. Rxd3 {[%clk 0:02:14.1]} 30... Rxd3+ {[%clk
0:02:04.2]} 31. Ke4 {[%clk 0:02:14.8]} 31... Rd7 {[%clk 0:02:04.7]} 32. f4
{[%clk 0:02:13]} 32... Kf7 {[%clk 0:02:02.8]} 33. f5 {[%clk 0:02:13.5]} 33...
gxf5+ {[%clk 0:02:01.6]} 34. gxf5 {[%clk 0:02:14.4]} 34... e6 {[%clk 0:01:58.1]}
35. fxe6+ {[%clk 0:02:03.7]} 35... Kxe6 {[%clk 0:01:59]} 36. b4 {[%clk
0:02:03.9]} 36... f5+ {[%clk 0:01:53.1]} 37. Ke3 {[%clk 0:02:01.5]} 37... Rc7
{[%clk 0:01:50.1]} 38. b5 {[%clk 0:01:59.5]} 38... Kd6 {[%clk 0:01:42.7]} 39.
Kf4 {[%clk 0:01:59.4]} 39... Ke6 {[%clk 0:01:40.7]} 40. h4 {[%clk 0:01:46.5]}
40... a6 {[%clk 0:01:37.5]} 41. a4 {[%clk 0:01:46.3]} 41... axb5 {[%clk
0:01:37.7]} 42. axb5 {[%clk 0:01:47.2]} 42... Rg7 {[%clk 0:01:38]} 43. Ne5
{[%clk 0:01:40]} 43... Kf6 {[%clk 0:01:33.5]} 44. Nf3 {[%clk 0:01:11.9]} 44...
Rg4+ {[%clk 0:01:33.1]} 45. Ke3 {[%clk 0:01:12.4]} 45... Rxc4 {[%clk 0:01:33]}
46. h5 {[%clk 0:01:11.7]} 46... h6 {[%clk 0:01:32.3]} 47. Kd3 {[%clk 0:01:10.7]}
47... Rb4 {[%clk 0:01:32.4]} 48. Nd2 {[%clk 0:01:09.9]} 48... Rd4+ {[%clk
0:01:31.5]} 49. Ke3 {[%clk 0:01:10.3]} 49... Rxd2 {[%clk 0:01:32.4]} 50. Kxd2
{[%clk 0:01:11.2]} 50... Ke5 {[%clk 0:01:32.8]} 0-1

[Event "*** SCC Grand Prix: Titled Tuesday Blitz"]
[Site "Chess.com"]
[Date "2020.10.06"]
[Round "6"]
[White "Balla_Tamas"]
[Black "VladimirBugayev"]
[Result "1-0"]
[WhiteElo "2440"]
[BlackElo "2302"]
[TimeControl "180+1"]
[EndTime "11:06:14 PDT"]
[Termination "Balla_Tamas won by checkmate"]

1. e4 {[%clk 0:03:00.9]} 1... c6 {[%clk 0:02:59.2]} 2. d4 {[%clk 0:03:00.4]}
2... d5 {[%clk 0:02:59.8]} 3. exd5 {[%clk 0:03:01]} 3... cxd5 {[%clk 0:03:00.7]}
4. Bd3 {[%clk 0:03:01.3]} 4... Nc6 {[%clk 0:03:01]} 5. c3 {[%clk 0:03:01.2]}
5... Nf6 {[%clk 0:03:01.4]} 6. Bf4 {[%clk 0:02:58.4]} 6... Bg4 {[%clk
0:03:01.3]} 7. Qb3 {[%clk 0:02:58.1]} 7... Qd7 {[%clk 0:03:01.6]} 8. Nd2 {[%clk
0:02:55.5]} 8... e6 {[%clk 0:03:01.7]} 9. Ngf3 {[%clk 0:02:54.6]} 9... Be7
{[%clk 0:02:58.3]} 10. O-O {[%clk 0:02:52.3]} 10... O-O {[%clk 0:02:58.4]} 11.
Rae1 {[%clk 0:02:51.2]} 11... Bd6 {[%clk 0:02:31.3]} 12. Ne5 {[%clk 0:02:49.9]}
12... Qc7 {[%clk 0:02:31.1]} 13. h3 {[%clk 0:02:28.1]} 13... Bh5 {[%clk
0:02:27.9]} 14. g4 {[%clk 0:02:25.6]} 14... Bg6 {[%clk 0:02:27.6]} 15. Nxg6
{[%clk 0:02:25.7]} 15... hxg6 {[%clk 0:02:24.6]} 16. Bxd6 {[%clk 0:02:25.7]}
16... Qxd6 {[%clk 0:02:24]} 17. f4 {[%clk 0:02:26.4]} 17... Rfc8 {[%clk
0:02:06.3]} 18. Kg2 {[%clk 0:02:13.7]} 18... Na5 {[%clk 0:02:03]} 19. Qc2 {[%clk
0:02:10.4]} 19... Nc4 {[%clk 0:01:46.7]} 20. Nxc4 {[%clk 0:02:05.9]} 20... dxc4
{[%clk 0:01:47.6]} 21. Be4 {[%clk 0:02:06.4]} 21... Nd5 {[%clk 0:01:38.6]} 22.
Bxd5 {[%clk 0:02:03.7]} 22... Qxd5+ {[%clk 0:01:33]} 23. Kg3 {[%clk 0:02:03.9]}
23... b5 {[%clk 0:01:30.2]} 24. Re5 {[%clk 0:02:04.2]} 24... Qd7 {[%clk
0:01:30]} 25. a3 {[%clk 0:01:56.7]} 25... a5 {[%clk 0:01:29.4]} 26. h4 {[%clk
0:01:55.7]} 26... b4 {[%clk 0:01:28.9]} 27. h5 {[%clk 0:01:53.5]} 27... gxh5
{[%clk 0:01:26]} 28. Rxh5 {[%clk 0:01:52.4]} 28... g6 {[%clk 0:01:19.3]} 29. Rh6
{[%clk 0:01:52.3]} 29... Kg7 {[%clk 0:01:18.1]} 30. Rfh1 {[%clk 0:01:52.1]}
30... Rh8 {[%clk 0:01:17.1]} 31. Qh2 {[%clk 0:01:51.1]} 31... Rxh6 {[%clk
0:00:58.6]} 32. Qxh6+ {[%clk 0:01:49.9]} 32... Kf6 {[%clk 0:00:59]} 33. Qg5+
{[%clk 0:01:44.5]} 33... Kg7 {[%clk 0:00:56.6]} 34. Qe5+ {[%clk 0:01:35.9]}
34... f6 {[%clk 0:00:54.3]} 35. Qe4 {[%clk 0:01:35.9]} 35... bxa3 {[%clk
0:00:48.8]} 36. Qxa8 {[%clk 0:01:33.6]} 36... axb2 {[%clk 0:00:45.9]} 37. Qh8+
{[%clk 0:01:29.8]} 37... Kf7 {[%clk 0:00:44.1]} 38. Rh7# {[%clk 0:01:30.7]} 1-0

[Event "*** SCC Grand Prix: Titled Tuesday Blitz"]
[Site "Chess.com"]
[Date "2020.10.06"]
[Round "6"]
[White "HanSchut"]
[Black "mapleaff"]
[Result "1-0"]
[WhiteElo "2246"]
[BlackElo "2345"]
[TimeControl "180+1"]
[EndTime "11:06:20 PDT"]
[Termination "HanSchut won by resignation"]

1. e4 {[%clk 0:03:00.9]} 1... c5 {[%clk 0:02:57.2]} 2. Nf3 {[%clk 0:03:00.9]}
2... b6 {[%clk 0:02:52]} 3. c4 {[%clk 0:02:58.6]} 3... Bb7 {[%clk 0:02:51.4]} 4.
Nc3 {[%clk 0:02:58.6]} 4... e6 {[%clk 0:02:50.3]} 5. Be2 {[%clk 0:02:55.8]} 5...
Ne7 {[%clk 0:02:48.9]} 6. d4 {[%clk 0:02:51.8]} 6... cxd4 {[%clk 0:02:48]} 7.
Nxd4 {[%clk 0:02:52.7]} 7... a6 {[%clk 0:02:47.5]} 8. Be3 {[%clk 0:02:49.3]}
8... d6 {[%clk 0:02:39.3]} 9. O-O {[%clk 0:02:46.4]} 9... Nd7 {[%clk 0:02:37.7]}
10. Rc1 {[%clk 0:02:44.4]} 10... Nc6 {[%clk 0:02:36.8]} 11. f3 {[%clk 0:02:41]}
11... Be7 {[%clk 0:02:35.6]} 12. Qd2 {[%clk 0:02:41.1]} 12... O-O {[%clk
0:02:34.8]} 13. Rfd1 {[%clk 0:02:41.1]} 13... Qc7 {[%clk 0:02:33.9]} 14. Nd5
{[%clk 0:02:37.3]} 14... Qd8 {[%clk 0:02:22.1]} 15. Nxc6 {[%clk 0:02:31.1]}
15... Bxc6 {[%clk 0:02:19.3]} 16. Nxe7+ {[%clk 0:02:25.9]} 16... Qxe7 {[%clk
0:02:19]} 17. Qxd6 {[%clk 0:02:26.1]} 17... Qxd6 {[%clk 0:02:18.9]} 18. Rxd6
{[%clk 0:02:26.6]} 18... Rac8 {[%clk 0:02:16.1]} 19. Rcd1 {[%clk 0:02:21.8]}
19... Nc5 {[%clk 0:02:13.6]} 20. b3 {[%clk 0:01:54.2]} 20... a5 {[%clk
0:02:03.2]} 21. Kf2 {[%clk 0:01:54.1]} 21... h6 {[%clk 0:01:59]} 22. Bd3 {[%clk
0:01:41.1]} 22... f5 {[%clk 0:01:55.7]} 23. exf5 {[%clk 0:01:40.4]} 23... exf5
{[%clk 0:01:55.6]} 24. Bc2 {[%clk 0:01:34.6]} 24... h5 {[%clk 0:01:41.3]} 25.
Bf4 {[%clk 0:01:30.1]} 25... h4 {[%clk 0:01:37.6]} 26. h3 {[%clk 0:01:29.8]}
26... Ba8 {[%clk 0:01:31.7]} 27. Bg5 {[%clk 0:01:24.4]} 27... Rce8 {[%clk
0:01:29.2]} 28. Bxh4 {[%clk 0:01:22.3]} 28... f4 {[%clk 0:01:25.2]} 29. Rd8
{[%clk 0:01:17.5]} 29... Kf7 {[%clk 0:01:09.3]} 30. Rxe8 {[%clk 0:01:14.3]}
30... Rxe8 {[%clk 0:01:08.3]} 31. Rd8 {[%clk 0:01:08.6]} 31... Ne6 {[%clk
0:01:04.6]} 32. Bg6+ {[%clk 0:00:58.6]} 32... Kxg6 {[%clk 0:01:02.5]} 33. Rxe8
{[%clk 0:00:59.2]} 1-0

[Event "*** SCC Grand Prix: Titled Tuesday Blitz"]
[Site "Chess.com"]
[Date "2020.10.06"]
[Round "6"]
[White "AleksanderHnydiuk"]
[Black "Smirnov_Pavel"]
[Result "0-1"]
[WhiteElo "2551"]
[BlackElo "2795"]
[TimeControl "180+1"]
[EndTime "11:06:24 PDT"]
[Termination "Smirnov_Pavel won on time"]

1. e4 {[%clk 0:03:00.9]} 1... c5 {[%clk 0:02:59.8]} 2. Nf3 {[%clk 0:03:00.6]}
2... Nc6 {[%clk 0:03:00.7]} 3. d4 {[%clk 0:03:00.2]} 3... cxd4 {[%clk 0:03:01]}
4. Nxd4 {[%clk 0:03:01.1]} 4... Nf6 {[%clk 0:03:01.5]} 5. Nc3 {[%clk 0:03:01.1]}
5... e5 {[%clk 0:03:02.2]} 6. Ndb5 {[%clk 0:03:01.3]} 6... d6 {[%clk 0:03:02.7]}
7. Bg5 {[%clk 0:03:01.7]} 7... a6 {[%clk 0:03:02.9]} 8. Na3 {[%clk 0:03:02.2]}
8... b5 {[%clk 0:03:03.5]} 9. Nd5 {[%clk 0:03:02.3]} 9... Be7 {[%clk 0:03:03.5]}
10. Bxf6 {[%clk 0:03:02.5]} 10... Bxf6 {[%clk 0:03:04.4]} 11. c3 {[%clk
0:03:03]} 11... O-O {[%clk 0:03:04]} 12. Nc2 {[%clk 0:03:03.5]} 12... Rb8 {[%clk
0:03:04.5]} 13. Be2 {[%clk 0:03:02.8]} 13... Bg5 {[%clk 0:03:03.8]} 14. O-O
{[%clk 0:03:02.7]} 14... Kh8 {[%clk 0:03:04.5]} 15. Qd3 {[%clk 0:02:39.6]} 15...
f5 {[%clk 0:03:03.3]} 16. Bf3 {[%clk 0:02:27.9]} 16... f4 {[%clk 0:03:02]} 17.
Rfd1 {[%clk 0:02:22.1]} 17... a5 {[%clk 0:02:59.3]} 18. b4 {[%clk 0:01:28.2]}
18... Be6 {[%clk 0:02:56.7]} 19. a4 {[%clk 0:01:13.8]} 19... bxa4 {[%clk
0:02:55.1]} 20. b5 {[%clk 0:01:09.8]} 20... Ne7 {[%clk 0:02:40.8]} 21. Nxe7
{[%clk 0:00:53.8]} 21... Bxe7 {[%clk 0:02:41.7]} 22. Rxa4 {[%clk 0:00:52.5]}
22... Bb3 {[%clk 0:02:41.7]} 23. Raa1 {[%clk 0:00:45]} 23... a4 {[%clk
0:02:42.6]} 24. Rd2 {[%clk 0:00:35.7]} 24... Qa5 {[%clk 0:02:35.5]} 25. Be2
{[%clk 0:00:31.8]} 25... d5 {[%clk 0:02:26.2]} 26. exd5 {[%clk 0:00:27.4]} 26...
Rfd8 {[%clk 0:02:07.8]} 27. Bf3 {[%clk 0:00:16.4]} 27... Qxb5 {[%clk 0:02:02.6]}
28. Qxb5 {[%clk 0:00:13]} 28... Rxb5 {[%clk 0:02:03.5]} 29. Na3 {[%clk
0:00:08.1]} 29... Rc5 {[%clk 0:02:02.1]} 30. c4 {[%clk 0:00:05.4]} 30... Rcc8
{[%clk 0:02:01.6]} 31. Nb5 {[%clk 0:00:04.4]} 31... Bb4 {[%clk 0:02:00.7]} 32.
Rd3 {[%clk 0:00:01.5]} 32... Bxc4 {[%clk 0:01:59.9]} 33. Na7 {[%clk 0:00:01.6]}
33... Bxd3 {[%clk 0:01:59.1]} 34. Nxc8 {[%clk 0:00:02.2]} 34... Rxc8 {[%clk
0:01:59.9]} 0-1

[Event "*** SCC Grand Prix: Titled Tuesday Blitz"]
[Site "Chess.com"]
[Date "2020.10.06"]
[Round "6"]
[White "BanjoKazooieN64"]
[Black "Matveev_Vladimir"]
[Result "1/2-1/2"]
[WhiteElo "2484"]
[BlackElo "2614"]
[TimeControl "180+1"]
[EndTime "11:06:31 PDT"]
[Termination "Game drawn by repetition"]

1. e4 {[%clk 0:03:00.9]} 1... c5 {[%clk 0:02:59.9]} 2. Nc3 {[%clk 0:02:59.8]}
2... d6 {[%clk 0:03:00.5]} 3. Nf3 {[%clk 0:02:46.1]} 3... Nf6 {[%clk 0:02:57.9]}
4. d4 {[%clk 0:02:46.1]} 4... cxd4 {[%clk 0:02:58]} 5. Nxd4 {[%clk 0:02:47]}
5... a6 {[%clk 0:02:58.8]} 6. Rg1 {[%clk 0:02:47.4]} 6... e5 {[%clk 0:02:55.1]}
7. Nb3 {[%clk 0:02:47.2]} 7... Be6 {[%clk 0:02:55.7]} 8. g4 {[%clk 0:02:46.8]}
8... d5 {[%clk 0:02:55.5]} 9. g5 {[%clk 0:02:45.9]} 9... Nxe4 {[%clk 0:02:55.4]}
10. Nxe4 {[%clk 0:02:45.9]} 10... dxe4 {[%clk 0:02:56.3]} 11. Qxd8+ {[%clk
0:02:43.7]} 11... Kxd8 {[%clk 0:02:57.2]} 12. Bg2 {[%clk 0:02:44.1]} 12... Kc7
{[%clk 0:02:56.4]} 13. Bxe4 {[%clk 0:02:42.8]} 13... Nc6 {[%clk 0:02:51.4]} 14.
Be3 {[%clk 0:02:42.7]} 14... Rd8 {[%clk 0:02:50.9]} 15. c3 {[%clk 0:02:36.3]}
15... b6 {[%clk 0:02:42.9]} 16. h4 {[%clk 0:02:28.1]} 16... a5 {[%clk
0:02:42.7]} 17. Nd2 {[%clk 0:02:23.6]} 17... a4 {[%clk 0:02:31.2]} 18. a3 {[%clk
0:02:13.4]} 18... Bc5 {[%clk 0:02:18]} 19. Bxc5 {[%clk 0:02:06.9]} 19... bxc5
{[%clk 0:02:18.9]} 20. Bxc6 {[%clk 0:02:03.6]} 20... Kxc6 {[%clk 0:02:18.7]} 21.
Nf3 {[%clk 0:02:04]} 21... Kd5 {[%clk 0:02:07.9]} 22. Nd2 {[%clk 0:01:12.6]}
22... e4 {[%clk 0:02:02.6]} 23. O-O-O {[%clk 0:01:10.4]} 23... Ke5 {[%clk
0:01:56.6]} 24. Rde1 {[%clk 0:01:09]} 24... Rxd2 {[%clk 0:01:54.2]} 25. Kxd2
{[%clk 0:01:08.5]} 25... Rd8+ {[%clk 0:01:55.1]} 26. Kc1 {[%clk 0:01:06.4]}
26... Kf4 {[%clk 0:01:54]} 27. Re3 {[%clk 0:00:41.4]} 27... Rd3 {[%clk
0:01:45.2]} 28. Rxd3 {[%clk 0:00:35.8]} 28... exd3 {[%clk 0:01:46.1]} 29. Rg3
{[%clk 0:00:35.2]} 29... c4 {[%clk 0:01:44]} 30. Kd2 {[%clk 0:00:34.7]} 30...
Bd5 {[%clk 0:01:40.9]} 31. Ke1 {[%clk 0:00:27.6]} 31... Bf3 {[%clk 0:01:39.4]}
32. Kd2 {[%clk 0:00:27.9]} 32... Bd5 {[%clk 0:01:28.7]} 33. Ke1 {[%clk
0:00:28.1]} 33... Be4 {[%clk 0:01:25.3]} 34. Kd2 {[%clk 0:00:28.4]} 34... Bd5
{[%clk 0:01:25.1]} 1/2-1/2